bitfinex-derivatives/quotes_SOLF0:USTF0_20250831
["timestamp","ask_amount","ask_price","bid_price","bid_amount"]
[1756629000412,5.76,204.49,204.47,7.4]
[1756629000808,5.79105652,204.5,204.44,11.48123121]
[1756629001514,0.03105652,204.5,204.45,8.91555861]
[1756629001714,0.03105652,204.5,204.47,1.51555861]
[1756629001912,0.03105652,204.5,204.48,7.4]
[1756629002417,7.30661513,204.5,204.45,4.08123121]
[1756629002709,5.76,204.49,204.46,7.4]
[1756629002910,7.27555861,204.48,204.44,7.4]
[1756629003118,5.76,204.47,204.44,7.4]
[1756629003415,5.76,204.47,204.43,4.08123121]
[1756629003814,5.76,204.47,204.44,7.4]
[1756629004316,0.03105652,204.5,204.45,7.4]
[1756629004612,0.03105652,204.5,204.45,8.91555861]
[1756629005013,0.03105652,204.5,204.45,5.59678982]
[1756629005514,0.03105652,204.5,204.47,7.4]
[1756629006009,0.03105652,204.5,204.46,4.08123121]
[1756629006211,0.03105652,204.5,204.47,7.4]
[1756629006610,0.03105652,204.5,204.46,4.08123121]
[1756629006815,0.03105652,204.5,204.47,7.4]
[1756629007315,0.03105652,204.5,204.46,4.08123121]
[1756629007807,0.03105652,204.5,204.47,7.81]
[1756629008205,0.03105652,204.5,204.46,4.08123121]
[1756629008515,5.81105652,204.5,204.47,7.81]
[1756629009318,5.81105652,204.5,204.45,4.08123121]
[1756629009717,5.81105652,204.5,204.46,7.81]
[1756629010117,5.81105652,204.5,204.45,4.08123121]
[1756629010619,5.81105652,204.5,204.46,7.81]
[1756629010819,5.81105652,204.5,204.45,4.08123121]
[1756629011218,5.81105652,204.5,204.46,7.81]
[1756629011417,5.81105652,204.5,204.45,4.08123121]
[1756629011818,5.81105652,204.5,204.46,7.81]
[1756629012018,5.81105652,204.5,204.45,4.08123121]
[1756629012417,1.54661513,204.5,204.46,7.81]
[1756629012723,7.29555861,204.48,204.45,4.08123121]
[1756629013118,5.78,204.47,204.44,11.89123121]
[1756629013423,5.78,204.47,204.45,7.81]
[1756629014420,1.51555861,204.48,204.45,7.81]
[1756629014818,1.51555861,204.48,204.44,4.08123121]
[1756629015119,1.51555861,204.48,204.45,7.81]
[1756629015323,1.51555861,204.48,204.44,4.08123121]
[1756629015523,1.51555861,204.48,204.45,7.81]
[1756629016325,7.29555861,204.48,204.45,7.81]
[1756629017020,1.54661513,204.5,204.44,4.08123121]
[1756629017225,0.03105652,204.5,204.45,7.81]
[1756629018025,0.03105652,204.5,204.45,4.08123121]
[1756629018527,0.03105652,204.5,204.49,7.81]
[1756629019328,0.03105652,204.5,204.49,11.89337394]
[1756629019722,0.03105652,204.5,204.49,4.08337394]
[1756629019921,0.03105652,204.5,204.49,11.89337394]
[1756629022330,5.78,204.59,204.5,7.81]
[1756629022625,7.29555861,204.59,204.53,7.81]
[1756629022829,7.32555861,204.57,204.53,7.81]
[1756629023129,7.32555861,204.57,204.51,7.81]
[1756629023330,5.81,204.57,204.51,7.81]
[1756629023529,5.81,204.57,204.52,0.03641715]
[1756629023830,5.81,204.58,204.52,0.03641715]
[1756629030035,5.8,204.56,204.53,7.81]
[1756629030333,126.42,204.56,204.53,7.81]
[1756629031932,120.62,204.56,204.53,7.81]
[1756629032437,5.8,204.55,204.52,0.03641715]
[1756629032733,5.8,204.55,204.52,7.84641715]
[1756629034037,5.8,204.55,204.53,7.81]
[1756629035031,120.6,204.55,204.53,7.81]
[1756629036138,5.8,204.59,204.53,7.81]
[1756629036343,120.6,204.58,204.53,7.81]
[1756629037033,120.6,204.58,204.52,0.03641715]
[1756629037738,120.6,204.58,204.53,7.3]
[1756629038140,120.6,204.58,204.52,0.03641715]
[1756629038343,328.7,204.6,204.53,7.3]
[1756629038536,5.78,204.64,204.54,11.38337394]
[1756629038740,126.36,204.64,204.55,7.3]
[1756629038941,126.36,204.64,204.57,7.3]
[1756629039236,5.78,204.64,204.57,7.33557959]
[1756629039440,126.36,204.64,204.57,7.33557959]
[1756629040638,5.78,204.64,204.57,7.33557959]
[1756629042137,5.78,204.64,204.57,0.03557959]
[1756629042342,120.56,204.65,204.57,0.03557959]
[1756629042343,5.78,204.62,204.57,0.03557959]
[1756629043440,2.3668637,204.6,204.57,0.03557959]
[1756629043640,126.32,204.59,204.57,0.03557959]
[1756629044240,126.32,204.59,204.5,7.3]
[1756629044241,5.74,204.58,204.47,7.3]
[1756629044436,2.3668637,204.56,204.47,7.3]
[1756629044644,5.74,204.55,204.47,7.3]
[1756629045446,0.03213636,204.53,204.47,7.3]
[1756629045639,120.57213636,204.53,204.47,7.3]
[1756629047048,126.31213636,204.53,204.47,7.3]
[1756629047749,5.74,204.52,204.43,11.38337394]
[1756629049244,5.74,204.52,204.44,7.3]
[1756629050348,5.74,204.52,204.44,11.38337394]
[1756629051447,5.74,204.52,204.45,7.3]
[1756629053649,5.74,204.52,204.45,11.38337394]
[1756629054242,5.74,204.52,204.45,7.3]
[1756629058654,5.74,204.52,204.43,4.08337394]
[1756629059354,0.03675966,204.5,204.43,4.08337394]
[1756629059556,5.77675966,204.5,204.43,4.08337394]
[1756629060753,5.77675966,204.5,204.44,7.3]
[1756629065464,5.77675966,204.5,204.42,2.3668637]
[1756629065465,5.76,204.49,204.42,4.08337394]
[1756629065665,2.40362336,204.5,204.4,7.3]
[1756629065865,5.76,204.46,204.39,4.08337394]
[1756629066070,5.76,204.46,204.37,7.3]
[1756629066471,2.3668637,204.47,204.37,7.3]
[1756629066673,5.76,204.43,204.37,7.3]
[1756629066969,12.28,204.43,204.37,7.3]
[1756629072475,6.52,204.43,204.33,4.06999807]
[1756629072673,5.78,204.42,204.34,7.65]
[1756629072873,2.3668637,204.41,204.34,7.65]
[1756629073264,2.3668637,204.41,204.31,7.65]
[1756629073573,5.81727026,204.4,204.31,7.65]
[1756629074675,5.78,204.39,204.31,7.65]
[1756629075777,5.78,204.37,204.31,7.65]
[1756629076369,0.03727026,204.4,204.3,7.65]
[1756629076571,0.03727026,204.4,204.33,7.65]
[1756629076766,5.78,204.44,204.33,7.65]
[1756629077174,0.03145213,204.39,204.33,10.0168637]
[1756629077473,0.03145213,204.39,204.34,7.65]
[1756629078575,0.03145213,204.39,204.33,2.3668637]
[1756629078777,0.03145213,204.39,204.34,7.65]
[1756629079579,0.03145213,204.39,204.33,2.3668637]
[1756629079781,0.03145213,204.39,204.34,7.65]
[1756629080179,0.03145213,204.39,204.33,10.0168637]
[1756629080479,0.03145213,204.39,204.33,2.3668637]
[1756629081079,0.03145213,204.39,204.34,7.65]
[1756629083988,0.03145213,204.39,204.33,2.3668637]
[1756629084182,0.03145213,204.39,204.34,7.65]
[1756629084777,0.03145213,204.39,204.33,2.3668637]
[1756629085078,0.03145213,204.39,204.34,7.65]
[1756629085487,0.03145213,204.39,204.33,2.3668637]
[1756629085882,0.03145213,204.39,204.34,7.65]
[1756629086085,0.03145213,204.39,204.33,2.3668637]
[1756629086682,0.03145213,204.39,204.34,7.65]
[1756629087084,0.03145213,204.39,204.33,2.3668637]
[1756629087285,0.03145213,204.39,204.34,7.65]
[1756629087482,0.03145213,204.39,204.28,4.06999807]
[1756629087683,0.03145213,204.39,204.33,7.65]
[1756629088988,0.03145213,204.39,204.34,4.44482083]
[1756629089189,0.03145213,204.39,204.36,7.65]
[1756629089489,0.03145213,204.39,204.37,12.09482083]
[1756629089685,5.79145213,204.39,204.38,4.44482083]
[1756629090285,0.03145213,204.39,204.38,4.44482083]
[1756629094492,0.03145213,204.39,204.38,12.09482083]
[1756629096694,0.03145213,204.39,204.38,12.09879004]
[1756629096889,5.79145213,204.39,204.38,4.44879004]
[1756629098194,8.15831583,204.39,204.38,4.44879004]
[1756629098395,8.63831583,204.39,204.38,4.44879004]
[1756629099294,8.63831583,204.39,204.32,7.71]
[1756629099595,0.03145213,204.39,204.34,7.71]
[1756629099792,0.03145213,204.39,204.35,4.45253058]
[1756629100088,0.03145213,204.39,204.37,7.71]
[1756629100292,0.03145213,204.39,204.38,4.45253058]
[1756629100996,0.03145213,204.39,204.38,12.16253058]
[1756629107503,0.03145213,204.39,204.38,12.17316191]
[1756629108300,5.79145213,204.39,204.38,4.46618443]
[1756629108804,0.03145213,204.39,204.38,12.17618443]
[1756629114407,5.79145213,204.39,204.38,4.46618443]
[1756629118207,5.79145213,204.39,204.38,4.48004769]
[1756629118706,5.79145213,204.39,204.32,7.71]
[1756629118902,2.3668637,204.37,204.32,7.71]
[1756629119102,120.38,204.36,204.31,7.71]
[1756629120209,120.38,204.35,204.31,7.71]
[1756629120410,2.3668637,204.37,204.31,7.71]
[1756629120610,120.38,204.37,204.31,11.77999807]
[1756629120810,120.38,204.37,204.31,4.06999807]
[1756629121012,120.38,204.37,204.32,7.71]
[1756629121612,120.38,204.37,204.31,7.71]
[1756629122215,120.38,204.37,204.32,7.71]
[1756629122711,120.38,204.37,204.31,7.71]
[1756629123714,126.14,204.37,204.31,7.71]
[1756629124108,2.3668637,204.35,204.31,7.71]
[1756629124809,5.76,204.34,204.31,7.71]
[1756629125614,5.76,204.34,204.27,74.53832156]
[1756629125815,5.76,204.34,204.28,7.71]
[1756629126015,120.36,204.34,204.29,7.71]
[1756629127311,120.36,204.34,204.28,7.71]
[1756629132815,5.77,204.33,204.28,7.71]
[1756629133015,120.36,204.34,204.28,7.71]
[1756629133721,5.77,204.33,204.28,7.71]
[1756629134121,120.36,204.34,204.28,7.71]
[1756629134322,5.77,204.33,204.28,7.71]
[1756629134520,120.36,204.34,204.27,70.44426456]
[1756629134722,120.36,204.34,204.27,78.31426456]
[1756629134723,126.13,204.34,204.27,78.31426456]
[1756629138627,5.77,204.33,204.27,7.87]
[1756629138828,120.36,204.34,204.27,7.87]
[1756629139027,5.77,204.33,204.27,7.87]
[1756629139230,11.38,204.32,204.27,7.87]
[1756629140124,17.09171328,204.35,204.29,2.3668637]
[1756629140524,0.03171328,204.35,204.3,7.87]
[1756629140729,0.03171328,204.35,204.33,2.3668637]
[1756629141028,0.03171328,204.35,204.34,7.87]
[1756629157639,5.79171328,204.35,204.32,11.8014634]
[1756629157837,5.76,204.34,204.28,4.0914634]
[1756629158042,5.76,204.34,204.28,7.71]
[1756629158940,0.03171328,204.35,204.28,7.71]
[1756629159239,5.76,204.33,204.25,11.8014634]
[1756629159738,22.9268637,204.34,204.25,11.8014634]
[1756629159937,0.03153277,204.31,204.25,11.8014634]
[1756629160140,5.79153277,204.31,204.25,11.8014634]
[1756629162041,5.79153277,204.31,204.25,7.71]
[1756629164343,0.03153277,204.31,204.25,7.71]
[1756629165840,5.79153277,204.31,204.25,7.71]
[1756629166045,5.79153277,204.31,204.21,7.71]
[1756629166046,8.1268637,204.3,204.21,7.71]
[1756629167244,2.3668637,204.3,204.21,7.71]
[1756629167444,5.76,204.29,204.21,7.71]
[1756629167944,2.3668637,204.3,204.21,7.71]
[1756629168651,5.76,204.26,204.18,7.71]
[1756629168847,22.16,204.26,204.18,7.71]
[1756629169449,0.03564959,204.24,204.18,7.71]
[1756629174450,2.40251329,204.24,204.18,7.71]
[1756629180460,5.76,204.23,204.12,7.71]
[1756629180754,0.03564959,204.24,204.12,7.71]
[1756629180957,2.3668637,204.27,204.16,7.71]
[1756629181551,2.3668637,204.27,204.19,0.03593931]
[1756629181752,2.3668637,204.27,204.2,7.71]
[1756629183857,2.3668637,204.24,204.2,7.71]
[1756629184061,5.8,204.23,204.2,7.71]
[1756629184258,2.3668637,204.24,204.2,7.71]
[1756629184460,5.8,204.23,204.2,7.71]
[1756629184658,5.8,204.23,204.19,0.03593931]
[1756629184860,2.3668637,204.24,204.19,7.74593931]
[1756629185355,5.8,204.23,204.19,7.74593931]
[1756629185557,2.3668637,204.24,204.19,7.74593931]
[1756629185755,2.3668637,204.27,204.19,0.03593931]
[1756629185756,5.8,204.2,204.19,0.03593931]
[1756629186857,6.28,204.2,204.13,7.71]
[1756629187053,5.8,204.17,204.13,7.71]
[1756629188162,5.83612775,204.17,204.13,7.71]
[1756629188461,5.83612775,204.17,204.06,7.6]
[1756629188863,5.8,204.17,204.06,7.6]
[1756629189264,0.03628515,204.14,204.06,7.6]
[1756629191763,0.03628515,204.14,204.09,7.6]
[1756629194864,0.03628515,204.14,204.05,4.06173671]
[1756629194865,0.03628515,204.14,204.06,7.6]
[1756629195064,0.03628515,204.14,204.08,7.6]
[1756629201967,0.03628515,204.14,204.1,7.6]
[1756629202266,343.64,204.33,204.09,2.3668637]
[1756629202267,5.83,204.24,204.13,7.6]
[1756629202468,5.83,204.24,204.15,2.3668637]
[1756629202664,5.83,204.24,204.16,7.6]
[1756629203568,5.83,204.24,204.18,0.03113872]
[1756629204271,5.83,204.24,204.18,7.63113872]
[1756629204666,328.94,204.33,204.18,7.63113872]
[1756629204667,5.84,204.32,204.18,7.63113872]
[1756629204866,2.3668637,204.3,204.18,7.63113872]
[1756629205067,5.84,204.29,204.18,7.6]
[1756629205362,5.84,204.29,204.22,0.03666458]
[1756629210680,5.84,204.33,204.24,7.6]
[1756629210880,8.2068637,204.37,204.27,7.6]
[1756629211069,8.2068637,204.37,204.29,7.6]
[1756629211070,5.84,204.37,204.29,7.6]
[1756629211270,5.84,204.37,204.3,4.45847581]
[1756629211474,5.84,204.37,204.31,4.45847581]
[1756629211676,5.84,204.38,204.32,4.45847581]
[1756629211877,5.84,204.38,204.33,4.45847581]
[1756629212080,5.84,204.38,204.34,4.45847581]
[1756629212380,5.84,204.38,204.35,4.45847581]
[1756629212579,5.84,204.38,204.3,0.03163997]
[1756629212776,5.84,204.38,204.31,4.45381061]
[1756629212981,5.84,204.38,204.32,4.45381061]
[1756629213180,22.82,204.39,204.33,4.45381061]
[1756629213382,5.84,204.38,204.34,4.45381061]
[1756629213574,5.84,204.38,204.35,4.45381061]
[1756629213778,5.84,204.38,204.32,0.03312704]
[1756629213980,5.84,204.38,204.33,4.45180979]
[1756629214180,22.82,204.39,204.34,4.45180979]
[1756629214376,5.84,204.38,204.32,0.03312704]
[1756629214579,5.84,204.38,204.33,4.44961618]
[1756629214780,22.82,204.39,204.34,4.44961618]
[1756629215080,5.84,204.38,204.32,0.03312704]
[1756629215277,22.82,204.39,204.33,4.44988758]
[1756629215478,5.84,204.38,204.32,0.03312704]
[1756629215679,22.82,204.39,204.33,4.44807264]
[1756629215979,5.84,204.38,204.32,0.03312704]
[1756629216178,22.82,204.39,204.32,0.03312704]
[1756629216179,22.82,204.39,204.33,4.44807264]
[1756629216380,5.84,204.38,204.32,0.03312704]
[1756629216578,22.82,204.39,204.33,4.44641833]
[1756629216779,5.84,204.38,204.32,0.03312704]
[1756629216981,22.82,204.39,204.33,4.44641833]
[1756629217282,5.84,204.38,204.32,0.03312704]
[1756629217478,22.82,204.39,204.33,4.44490225]
[1756629217782,5.8,204.38,204.32,0.03312704]
[1756629217977,5.8,204.38,204.33,4.44490225]
[1756629218178,5.8,204.38,204.32,0.03312704]
[1756629220077,8.1668637,204.38,204.32,0.03312704]
[1756629220271,5.8,204.34,204.32,0.03312704]
[1756629220473,2.3668637,204.35,204.32,0.03312704]
[1756629220673,5.8,204.34,204.32,0.03312704]
[1756629221081,2.3668637,204.35,204.32,0.03312704]
[1756629221585,5.8,204.34,204.32,0.03312704]
[1756629222285,6.28,204.33,204.32,0.03312704]
[1756629224490,6.28,204.33,204.25,7.5]
[1756629224491,0.48,204.33,204.22,7.5]
[1756629224695,2.3668637,204.35,204.22,7.5]
[1756629224696,5.77,204.28,204.22,7.5]
[1756629225890,0.03641172,204.27,204.22,7.5]
[1756629226285,5.77,204.32,204.22,7.5]
[1756629226692,0.03490488,204.27,204.22,7.5]
[1756629227388,0.03490488,204.27,204.17,4.06173671]
[1756629227593,0.03490488,204.27,204.18,7.5]
[1756629227795,0.03490488,204.27,204.22,7.5]
[1756629227984,0.03490488,204.27,204.21,2.3668637]
[1756629228497,0.03490488,204.27,204.22,7.5]
[1756629228889,0.03490488,204.27,204.21,2.3668637]
[1756629229091,0.03490488,204.27,204.22,7.5]
[1756629229389,0.03490488,204.27,204.21,2.3668637]
[1756629230189,0.03490488,204.27,204.22,7.5]
[1756629230994,0.03490488,204.27,204.21,2.3668637]
[1756629231596,0.03490488,204.27,204.22,7.5]
[1756629232398,0.03490488,204.27,204.21,2.3668637]
[1756629233196,0.03490488,204.27,204.22,7.5]
[1756629233597,0.03490488,204.27,204.21,2.3668637]
[1756629233797,0.03490488,204.27,204.22,7.5]
[1756629234490,0.03490488,204.27,204.21,7.5]
[1756629240209,0.03490488,204.27,204.21,9.8668637]
[1756629240507,0.03490488,204.27,204.21,2.3668637]
[1756629240696,0.03490488,204.27,204.22,7.5]
[1756629243504,0.03490488,204.27,204.23,7.5]
[1756629243703,0.03490488,204.27,204.22,2.3668637]
[1756629243904,0.03490488,204.27,204.23,7.5]
[1756629244103,0.03490488,204.27,204.22,2.3668637]
[1756629244307,0.03490488,204.27,204.23,7.5]
[1756629244707,5.80490488,204.27,204.23,7.5]
[1756629244902,5.80490488,204.27,204.22,2.3668637]
[1756629245300,5.80490488,204.27,204.23,7.5]
[1756629245812,5.80490488,204.27,204.22,2.3668637]
[1756629246012,0.03490488,204.27,204.22,2.3668637]
[1756629246712,0.03490488,204.27,204.23,7.5]
[1756629246913,5.80490488,204.27,204.22,2.3668637]
[1756629247110,5.80490488,204.27,204.23,7.5]
[1756629247508,0.03490488,204.27,204.23,7.97]
[1756629247915,0.03490488,204.27,204.22,2.3668637]
[1756629248612,0.03490488,204.27,204.23,7.97]
[1756629248813,0.03490488,204.27,204.22,2.3668637]
[1756629249009,0.03490488,204.27,204.23,7.97]
[1756629249314,5.83490488,204.27,204.22,2.3668637]
[1756629249512,5.83490488,204.27,204.23,7.97]
[1756629249709,5.83490488,204.27,204.22,2.3668637]
[1756629249920,5.83490488,204.27,204.23,7.97]
[1756629250218,5.8,204.26,204.23,7.97]
[1756629250409,0.03490488,204.27,204.22,2.3668637]
[1756629250615,5.83490488,204.27,204.23,7.97]
[1756629250808,5.83490488,204.27,204.22,2.3668637]
[1756629251215,5.83490488,204.27,204.23,7.97]
[1756629251416,5.83490488,204.27,204.22,2.3668637]
[1756629251711,5.83490488,204.27,204.23,7.97]
[1756629252107,5.83490488,204.27,204.22,2.3668637]
[1756629252108,5.83490488,204.27,204.22,6.43538216]
[1756629252508,5.83490488,204.27,204.24,7.97]
[1756629252920,0.03490488,204.27,204.22,6.43538216]
[1756629253617,0.03490488,204.27,204.23,7.97]
[1756629254317,0.03490488,204.27,204.22,6.43538216]
[1756629254517,0.03490488,204.27,204.23,7.97]
[1756629254715,0.03490488,204.27,204.22,6.43538216]
[1756629255413,0.03490488,204.27,204.23,7.97]
[1756629255812,0.03490488,204.27,204.22,6.43538216]
[1756629256211,0.03490488,204.27,204.23,7.97]
[1756629256414,0.03490488,204.27,204.22,6.43538216]
[1756629256623,0.03490488,204.27,204.23,7.97]
[1756629256920,0.03490488,204.27,204.22,6.43538216]
[1756629257122,0.03490488,204.27,204.23,7.97]
[1756629257322,0.03490488,204.27,204.22,6.43538216]
[1756629258122,0.03490488,204.27,204.23,12.03851846]
[1756629258418,0.03490488,204.27,204.23,4.06851846]
[1756629259016,0.03490488,204.27,204.24,7.97]
[1756629259725,0.03490488,204.27,204.23,4.06851846]
[1756629259924,0.03490488,204.27,204.24,7.97]
[1756629260730,0.03490488,204.27,204.23,4.06851846]
[1756629261630,0.03490488,204.27,204.24,7.97]
[1756629262225,0.03490488,204.27,204.24,4.06851846]
[1756629262727,0.03490488,204.27,204.25,7.97]
[1756629263328,0.03490488,204.27,204.24,4.06851846]
[1756629264129,0.03490488,204.27,204.25,7.97]
[1756629264330,0.03490488,204.27,204.24,4.06851846]
[1756629264630,5.84,204.38,204.26,7.97]
[1756629264832,5.84,204.38,204.31,7.97]
[1756629265021,5.84,204.38,204.32,4.70408321]
[1756629265221,5.84,204.38,204.31,7.97]
[1756629265425,5.84,204.38,204.32,4.70388821]
[1756629265626,328.98,204.39,204.33,4.70388821]
[1756629265821,328.98,204.39,204.34,4.70388821]
[1756629266026,5.84,204.38,204.35,4.70388821]
[1756629266227,5.84,204.38,204.33,0.03601836]
[1756629266228,5.84,204.38,204.36,4.6991557]
[1756629266430,5.84,204.38,204.37,4.6991557]
[1756629268533,6.32,204.38,204.37,4.6991557]
[1756629271137,126.48,204.38,204.37,4.6991557]
[1756629272334,126.48,204.38,204.33,0.03601836]
[1756629272536,5.84,204.36,204.34,4.63342006]
[1756629272733,5.84,204.36,204.35,4.63342006]
[1756629276040,5.84,204.36,204.35,4.63244773]
[1756629276642,5.84,204.36,204.35,4.63220467]
[1756629277042,6.32,204.36,204.35,4.63220467]
[1756629280643,126.48,204.36,204.35,4.63220467]
[1756629285849,126.48,204.36,204.33,0.03601836]
[1756629286041,8.2268637,204.34,204.33,0.03601836]
[1756629286240,128.3668637,204.34,204.33,0.03601836]
[1756629287944,8.7068637,204.34,204.33,0.03601836]
[1756629288442,128.8468637,204.34,204.33,0.03601836]
[1756629294546,122.9868637,204.34,204.33,0.03601836]
[1756629295242,2.8468637,204.34,204.33,0.03601836]
[1756629295446,120.14,204.34,204.33,7.52601836]
[1756629296749,128.3668637,204.34,204.33,0.03601836]
[1756629297843,122.5068637,204.34,204.33,4.60719635]
[1756629300243,128.3668637,204.34,204.33,4.60719635]
[1756629303957,122.5068637,204.34,204.25,7.49]
[1756629304551,5.86,204.33,204.25,7.49]
[1756629304752,120.14,204.32,204.25,7.49]
[1756629305359,0.034188,204.31,204.25,7.49]
[1756629306059,5.894188,204.31,204.25,7.49]
[1756629306552,8.2610517,204.31,204.25,7.49]
[1756629309664,120.14,204.3,204.23,7.25]
[1756629309857,120.14,204.29,204.23,7.25]
[1756629313264,8.2610517,204.31,204.23,7.25]
[1756629313566,5.84,204.29,204.23,7.25]
[1756629313861,120.14,204.3,204.21,4.08655058]
[1756629313862,2.3668637,204.28,204.21,4.08655058]
[1756629314057,2.3668637,204.28,204.2,7.25]
[1756629314058,5.84,204.27,204.2,7.25]
[1756629314653,0.03275216,204.26,204.2,7.25]
[1756629314853,120.12,204.25,204.19,4.08655058]
[1756629315055,125.96,204.25,204.19,7.25]
[1756629315966,122.4868637,204.25,204.2,4.50820583]
[1756629316160,122.4868637,204.25,204.16,86.91670143]
[1756629316161,5.84,204.24,204.21,4.50820583]
[1756629316365,5.84,204.24,204.22,4.50820583]
[1756629316562,5.84,204.24,204.23,4.50820583]
[1756629317164,5.84,204.24,204.16,7.25]
[1756629317467,5.84,204.21,204.17,4.50589225]
[1756629317668,5.84,204.19,204.18,4.50589225]
[1756629317962,125.98,204.19,204.13,7.25]
[1756629318162,5.84,204.18,204.14,11.75562124]
[1756629318369,5.84,204.18,204.15,4.50562124]
[1756629318561,5.84,204.18,204.16,4.50562124]
[1756629318762,5.84,204.18,204.17,4.50562124]
[1756629319366,120.1729295,204.19,204.17,4.50562124]
[1756629319568,120.1729295,204.19,204.18,4.50562124]
[1756629319769,126.0129295,204.19,204.18,4.50562124]
[1756629319964,5.8729295,204.19,204.18,4.50562124]
[1756629320165,126.0129295,204.19,204.18,4.50562124]
[1756629322870,120.1729295,204.19,204.18,11.75562124]
[1756629323771,120.1729295,204.19,204.18,4.50562124]
[1756629323972,126.0229295,204.19,204.18,4.50562124]
[1756629328579,5.8829295,204.19,204.18,4.4925913]
[1756629328773,5.8829295,204.19,204.14,7.25]
[1756629328774,126.0429295,204.19,204.09,2.3668637]
[1756629328974,126.0429295,204.19,204.1,11.7434488]
[1756629329278,126.0429295,204.19,204.12,7.25]
[1756629329476,126.0429295,204.19,204.13,4.4934488]
[1756629329676,5.85,204.18,204.14,11.76143738]
[1756629329877,5.85,204.18,204.15,4.51143738]
[1756629330178,5.85,204.18,204.16,4.51143738]
[1756629330379,5.85,204.18,204.17,4.51143738]
[1756629335380,0.0329295,204.19,204.17,4.51143738]
[1756629335577,0.0329295,204.19,204.18,4.51143738]
[1756629335778,9.0729295,204.19,204.18,4.51143738]
[1756629336584,14.9229295,204.19,204.18,4.51143738]
[1756629337682,5.8829295,204.19,204.18,4.51143738]
[1756629337884,126.0429295,204.19,204.18,4.51143738]
[1756629339679,126.0429295,204.19,204.18,4.50873682]
[1756629344987,126.0229295,204.19,204.18,4.50873682]
[1756629345191,120.1729295,204.19,204.18,12.28873682]
[1756629346286,0.0329295,204.19,204.18,12.28873682]
[1756629349995,0.0329295,204.19,204.18,13.80904051]
[1756629350387,0.0329295,204.19,204.18,13.81864459]
[1756629351696,0.0329295,204.19,204.18,12.2983409]
[1756629351897,0.0329295,204.19,204.18,13.81864459]
[1756629357999,120.1,204.23,204.19,7.78]
[1756629358199,120.1,204.23,204.21,7.78]
[1756629358401,120.1,204.23,204.22,12.2983409]
[1756629359798,5.88,204.26,204.23,7.78]
[1756629360001,120.1,204.25,204.24,12.2983409]
[1756629361001,120.1,204.25,204.24,12.29021164]
[1756629362203,329.16,204.27,204.24,4.51021164]
[1756629362397,120.1,204.26,204.25,12.29021164]
[1756629362995,120.08,204.27,204.25,4.51021164]
[1756629363202,120.08,204.27,204.26,12.29021164]
[1756629363600,5.89,204.32,204.26,12.29021164]
[1756629363601,7.41030369,204.32,204.26,4.51021164]
[1756629363805,125.97,204.31,204.28,7.78]
[1756629364002,125.97,204.31,204.29,4.51021164]
[1756629364203,125.97,204.31,204.3,4.51021164]
[1756629366108,5.89,204.37,204.3,4.51021164]
[1756629366408,5.89,204.35,204.31,4.51021164]
[1756629366610,120.08,204.36,204.32,4.51021164]
[1756629366810,5.89,204.35,204.33,4.51021164]
[1756629367005,5.89,204.38,204.35,7.78]
[1756629367212,5.89,204.38,204.36,4.49664893]
[1756629367410,125.95,204.38,204.37,4.49664893]
[1756629370214,125.95,204.38,204.33,7.87]
[1756629370511,125.95,204.38,204.34,4.51233172]
[1756629370708,125.95,204.38,204.36,7.87]
[1756629372017,120.06,204.38,204.32,2.40346226]
[1756629372218,5.86,204.37,204.34,7.87]
[1756629372515,120.02,204.36,204.35,4.50772292]
[1756629374208,125.88,204.36,204.35,4.50772292]
[1756629374613,125.88,204.36,204.32,2.40346226]
[1756629374614,5.86,204.35,204.32,10.27346226]